bitfinex/quotes_ETHUSD_20241001
["timestamp","ask_amount","ask_price","bid_price","bid_amount"]
[1727785339261,5.38609367,2637.4,2637.1,0.0663222]
[1727785340197,3.79161,2637.4,2637.1,0.0663222]
[1727785340701,6.17247367,2637.5,2637.1,3.8583322]
[1727785340905,6.17247367,2637.5,2637.1,4.69977742]
[1727785342493,6.17247367,2637.5,2637.1,3.8583322]
[1727785347434,5.38597367,2637.5,2637.1,3.8583322]
[1727785347729,5.38597367,2637.5,2637.1,0.0663222]
[1727785351222,1.59448367,2637.4,2637.1,0.0663222]
[1727785353526,1.59448367,2637.4,2637.1,3.8582822]
[1727785353703,1.59448367,2637.4,2637.1,4.69974142]
[1727785354186,1.59448367,2637.4,2637.1,0.90778142]
[1727785354392,1.59448367,2637.4,2637.1,0.0663222]
[1727785354932,5.38610367,2637.4,2637.1,0.0663222]
[1727785356027,3.79176,2637.3,2637.1,0.0663222]
[1727785357130,1.59448367,2637.4,2637.1,0.0663222]
[1727785357131,5.38609367,2637.4,2637.1,0.0663222]
[1727785358501,3.79176,2637.3,2637.1,0.0663222]
[1727785359519,3.7919,2637.2,2637.1,0.0663222]
[1727785359836,3.79219,2637.0,2636.7,0.7923]
[1727785359991,3.79219,2637.0,2636.7,2.00977561]
[1727785360799,3.79219,2637.0,2636.7,0.7923]
[1727785361003,3.79244,2636.9,2636.5,4.5613]
[1727785361396,8.38028,2637.0,2636.6,3.79276]
[1727785361596,8.38028,2637.0,2636.5,0.7684]
[1727785361796,8.38028,2637.0,2636.5,5.09708961]
[1727785362810,3.79234,2636.9,2636.5,5.09708961]
[1727785364906,3.79234,2636.9,2636.5,0.7684]
[1727785365110,3.79248,2636.8,2636.3,5.77468209]
[1727785365316,5.41263521,2636.9,2636.3,4.5572]
[1727785365511,3.79247,2636.8,2636.3,4.5572]
[1727785365732,3.79247,2636.8,2636.3,8.35031]
[1727785366223,5.41263521,2636.9,2636.3,4.5572]
[1727785366422,3.79254,2636.8,2636.3,4.5572]
[1727785366899,6.20031521,2636.7,2636.3,0.7641]
[1727785367100,1.62029521,2636.5,2636.2,4.18979164]
[1727785367406,3.79278,2636.6,2636.2,3.79333]
[1727785367708,5.41319521,2636.5,2636.1,0.8097]
[1727785367916,9.20619521,2636.5,2636.0,3.79352]
[1727785368142,1.62029521,2636.3,2636.0,0.39647609]
[1727785368343,2.42579521,2636.1,2636.0,0.39647609]
[1727785369030,2.42579521,2636.1,2635.6,3.79409]
[1727785369209,2.42579521,2636.1,2636.0,0.06776157]
[1727785369416,2.42579521,2636.1,2635.7,3.79403]
[1727785369607,2.42579521,2636.1,2636.0,0.06776157]
[1727785369800,2.42579521,2636.1,2635.7,3.79403]
[1727785370338,2.42579521,2636.1,2635.8,0.0680005]
[1727785371216,0.8055,2636.1,2635.8,3.79383]
[1727785371538,0.8055,2636.1,2635.9,0.06810386]
[1727785372338,0.8055,2636.1,2636.0,0.0679844]
[1727785372496,0.8055,2636.1,2635.7,3.79403]
[1727785372703,0.8055,2636.1,2635.8,0.06822054]
[1727785374011,0.8055,2636.1,2635.6,4.19061741]
[1727785374214,0.8055,2636.1,2635.9,0.06810107]
[1727785374443,0.8055,2636.1,2635.6,7.98471741]
[1727785374939,0.8055,2636.1,2635.7,0.06834559]
[1727785375244,0.8055,2636.1,2635.7,3.86236559]
[1727785376841,0.8055,2636.1,2635.8,3.79384]
[1727785377199,0.8055,2636.1,2635.9,0.06810664]
[1727785379640,0.8055,2636.1,2635.6,7.98468741]
[1727785379940,0.8055,2636.1,2635.7,3.79402]
[1727785380107,0.8055,2636.1,2635.8,0.06822751]
[1727785380605,4.59899,2636.1,2635.8,0.06822751]
[1727785382304,8.39255,2636.1,2635.8,0.06822751]
[1727785382628,3.79364,2636.0,2635.8,0.06822751]
[1727785383024,3.79364,2636.0,2635.6,4.19069741]
[1727785383227,3.79364,2636.0,2635.9,0.06811776]
[1727785383426,3.79364,2636.0,2635.6,0.39650741]
[1727785383626,3.79364,2636.0,2635.9,0.06811776]
[1727785383833,3.79379,2635.9,2635.5,4.57961]
[1727785384339,3.79379,2635.9,2635.6,0.06850545]
[1727785384340,3.79378,2635.9,2635.6,0.06850545]
[1727785385857,3.79405,2635.7,2635.6,0.06850545]
[1727785386014,4.59155,2635.7,2635.6,0.06850545]
[1727785386220,4.59155,2635.7,2635.3,19.82652387]
[1727785386221,3.7942,2635.6,2635.3,19.82652387]
[1727785386459,3.7942,2635.6,2635.3,19.43]
[1727785386625,0.7975,2635.7,2635.3,19.43]
[1727785386626,4.59162,2635.7,2635.3,19.43]
[1727785387040,3.79441,2635.5,2635.3,19.43]
[1727785388561,6.21194521,2635.7,2635.3,19.43]
[1727785388562,3.79427,2635.6,2635.3,19.43]
[1727785389355,3.79435,2635.5,2635.3,19.43]
[1727785391961,3.79435,2635.5,2635.2,19.43]
[1727785394378,3.79421,2635.6,2635.2,23.22477]
[1727785394846,3.79421,2635.6,2635.2,19.43]
[1727785394847,3.79436,2635.5,2635.2,19.43]
[1727785395962,3.79451,2635.4,2635.2,19.43]
[1727785396571,0.8331,2635.4,2635.0,19.43]
[1727785396756,7.58973,2635.2,2635.0,19.43]
[1727785397077,3.795,2635.1,2634.7,0.7664]
[1727785397233,3.79507,2635.0,2634.7,0.7664]
[1727785397432,0.7841,2635.1,2634.7,0.7664]
[1727785397433,4.57909,2635.1,2634.7,0.7664]
[1727785397634,3.79513,2635.0,2634.5,4.54919]
[1727785397833,3.79513,2635.0,2634.5,5.383693]
[1727785398076,3.79513,2635.0,2634.5,5.77994604]
[1727785398260,3.79528,2634.9,2634.5,1.14975304]
[1727785398441,3.79528,2634.9,2634.5,0.39625304]
[1727785398751,3.79528,2634.9,2634.4,3.79584]
[1727785398967,3.79513,2635.0,2634.5,3.86582106]
[1727785399170,3.79521,2634.9,2634.5,3.86582106]
[1727785399368,3.79513,2635.0,2634.5,3.86582106]
[1727785400970,7.5903,2635.0,2634.5,3.86582106]
[1727785401186,3.79513,2635.0,2634.5,3.86582106]
[1727785402981,6.19931521,2635.1,2634.5,7.66146106]
[1727785403335,2.40439521,2635.1,2634.5,3.86575106]
[1727785403536,2.40439521,2635.1,2634.7,3.79549]
[1727785403537,0.7841,2635.1,2634.7,3.79549]
[1727785403735,0.7841,2635.1,2634.8,0.06981154]
[1727785403968,0.7841,2635.1,2634.7,3.79549]
[1727785404175,0.7841,2635.1,2634.8,0.06981154]
[1727785404378,0.7841,2635.1,2634.6,3.79563]
[1727785404571,0.7841,2635.1,2634.5,4.25760511]
[1727785404572,0.7841,2635.1,2634.7,3.86541111]
[1727785405070,4.57902,2635.1,2634.7,0.06993111]
[1727785405462,0.7841,2635.1,2634.7,0.06993111]
[1727785406481,4.57903,2635.1,2634.7,0.06993111]
[1727785407340,0.7841,2635.1,2634.7,0.06993111]
[1727785407540,4.57905,2635.1,2634.7,0.06993111]
[1727785408541,4.57905,2635.1,2634.7,1.69022632]
[1727785411983,8.37405,2635.1,2634.7,1.69022632]
[1727785412308,4.57905,2635.1,2634.7,1.69022632]
[1727785412699,3.79509,2635.0,2634.7,1.69022632]
[1727785413206,4.57905,2635.1,2634.7,1.69022632]
[1727785413879,3.79514,2635.0,2634.7,1.69022632]
[1727785415113,0.7841,2635.1,2634.7,1.69022632]
[1727785415114,4.57903,2635.1,2634.7,1.69022632]
[1727785415985,3.79513,2635.0,2634.7,1.69022632]
[1727785422122,3.79513,2635.0,2634.7,0.06993111]
[1727785422413,3.79513,2635.0,2634.5,5.41601521]
[1727785422635,3.79513,2635.0,2634.8,0.06983108]
[1727785422831,3.79513,2635.0,2634.5,5.41601521]
[1727785423037,3.79513,2635.0,2634.9,0.06971152]
[1727785423236,3.79513,2635.0,2634.5,5.41601521]
[1727785423537,3.79513,2635.0,2634.9,0.06971152]
[1727785424044,3.79513,2635.0,2634.5,9.21167521]
[1727785424340,3.79513,2635.0,2634.9,0.06971152]
[1727785424538,3.79513,2635.0,2634.5,9.21166521]
[1727785425134,3.79513,2635.0,2634.6,3.86571023]
[1727785425909,4.57904,2635.1,2634.6,3.86571023]
[1727785427133,0.7841,2635.1,2634.8,3.79534]
[1727785427321,0.7841,2635.1,2634.7,2.44579521]
[1727785427530,0.7841,2635.1,2634.9,0.06971152]
[1727785427727,0.7841,2635.1,2634.8,0.06982549]
[1727785427917,0.7841,2635.1,2635.0,0.06958638]
[1727785428441,0.7841,2635.1,2634.7,6.24126521]
[1727785428740,4.57902,2635.1,2635.0,0.06958638]
[1727785428912,4.57902,2635.1,2634.7,2.44579521]
[1727785429115,8.37406,2635.1,2634.7,2.44579521]
[1727785429314,4.57902,2635.1,2634.8,0.06982549]
[1727785429632,3.79513,2635.0,2634.5,5.41599521]
[1727785429849,3.79513,2635.0,2634.9,0.06970174]
[1727785430005,8.37407,2635.1,2634.6,3.79563]
[1727785430221,3.79509,2635.0,2634.9,0.06970174]
[1727785431137,3.79509,2635.0,2634.5,9.21169521]
[1727785431355,3.79509,2635.0,2634.6,3.79562]
[1727785431544,0.7841,2635.1,2634.7,0.06994087]
[1727785431715,4.57903,2635.1,2634.7,0.06994087]
[1727785432116,3.79507,2635.0,2634.7,0.06994087]
[1727785432532,3.79507,2635.0,2634.5,5.41599521]
[1727785433045,3.79507,2635.0,2634.6,0.07006045]
[1727785433652,3.79507,2635.0,2634.6,3.86568045]
[1727785433876,0.7841,2635.1,2634.6,3.86568045]
[1727785434057,4.57903,2635.1,2634.6,3.86568045]
[1727785435532,6.17351367,2635.1,2634.6,3.86568045]
[1727785436029,3.79508,2635.0,2634.6,0.07006045]
[1727785436330,3.79516,2635.0,2634.6,0.07006045]
[1727785437224,5.38964367,2635.0,2634.6,0.07006045]
[1727785438155,3.79548,2634.8,2634.6,0.07006045]
[1727785438628,5.38996367,2634.8,2634.4,0.7988]
[1727785438826,5.38996367,2634.8,2634.7,0.06994087]
[1727785439030,5.38996367,2634.8,2634.4,0.7988]
[1727785439378,5.38996367,2634.8,2634.7,0.06994087]
[1727785439526,5.38996367,2634.8,2634.4,0.7988]
[1727785439728,5.38996367,2634.8,2634.7,0.06996321]
[1727785439941,5.38996367,2634.8,2634.3,5.41634521]
[1727785440136,5.38996367,2634.8,2634.4,0.07032197]
[1727785440635,1.59448367,2634.7,2634.4,0.07032197]
[1727785441070,5.38997367,2634.7,2634.4,0.07032197]
[1727785441228,5.38985367,2634.8,2634.4,0.07032197]
[1727785441432,5.38985367,2634.8,2634.3,1.62029521]
[1727785441433,1.59448367,2634.7,2634.3,1.62029521]
[1727785441633,1.59448367,2634.7,2634.5,0.07020237]
[1727785441967,1.59448367,2634.7,2634.4,0.07032197]
[1727785442267,1.59448367,2634.7,2634.5,0.07020237]
[1727785442571,1.59448367,2634.7,2634.3,5.41634521]
[1727785442761,1.59448367,2634.7,2634.4,0.07032197]
[1727785444130,1.59448367,2634.7,2634.5,1.62029521]
[1727785444335,1.59448367,2634.7,2634.6,0.7968]
[1727785444530,1.59448367,2634.8,2634.6,0.7968]
[1727785444729,1.59448367,2634.8,2634.6,0.86688279]
[1727785444933,1.59448367,2634.8,2634.7,1.62029521]
[1727785445174,1.59448367,2634.9,2634.7,5.41578521]
[1727785445381,1.59448367,2634.9,2634.7,1.69025842]
[1727785449028,1.59448367,2634.8,2634.7,1.69025842]
[1727785449171,1.59448367,2634.9,2634.7,1.69025842]
[1727785449510,1.59448367,2634.8,2634.7,1.69025842]
[1727785449801,1.59448367,2634.9,2634.7,1.69025842]
[1727785450175,1.99357397,2635.0,2634.7,1.69025842]
[1727785450176,1.59448367,2634.8,2634.7,1.69025842]
[1727785451167,1.59448367,2634.9,2634.7,1.69025842]
[1727785451567,1.59448367,2635.0,2634.7,5.48572842]
[1727785451775,1.59448367,2635.0,2634.9,1.62029521]
[1727785451973,1.59448367,2635.0,2634.9,1.69003882]
[1727785452399,1.99357397,2635.1,2634.9,2.49923882]
[1727785452400,1.59448367,2635.1,2634.9,2.49923882]
[1727785452899,1.99357397,2635.3,2634.9,6.9238997]
[1727785452900,1.59448367,2635.2,2634.9,6.9238997]
[1727785453211,1.59448367,2635.3,2635.1,1.62029521]
[1727785453409,1.59448367,2635.3,2635.2,0.06935848]
[1727785453995,1.59448367,2635.3,2635.2,0.01935848]
[1727785454187,1.59448367,2635.3,2635.2,0.06769181]
[1727785455002,1.59448367,2635.3,2635.2,0.06704653]
[1727785455398,1.59448367,2635.4,2635.2,0.06704653]
[1727785455707,1.59448367,2635.4,2635.3,1.62029521]
[1727785456110,1.59448367,2635.4,2635.3,1.57029521]
[1727785456307,1.59448367,2635.4,2635.3,1.68559019]
[1727785456907,1.59448367,2635.4,2635.3,1.63559019]
[1727785457105,1.59448367,2635.4,2635.3,1.68284658]
[1727785459571,1.99361239,2635.6,2635.3,5.47747658]
[1727785459572,1.59448367,2635.5,2635.3,5.47747658]
[1727785459773,3.21943487,2635.9,2635.5,4.57564]
[1727785459774,1.59448367,2635.8,2635.5,4.57564]
[1727785460020,1.59448367,2635.9,2635.7,6.19564521]
[1727785460169,1.59448367,2636.0,2635.8,0.06194273]
[1727785460476,1.99361239,2636.1,2635.8,0.06194273]
[1727785460477,1.59448367,2636.1,2635.9,1.62029521]
[1727785460675,1.59448367,2636.0,2635.9,1.62029521]
[1727785461105,1.59448367,2636.1,2635.9,1.62029521]
[1727785461285,1.59448367,2636.1,2636.0,1.62029521]
[1727785461683,1.59448367,2636.1,2636.0,1.68199483]
[1727785462311,1.59448367,2636.2,2636.0,1.68199483]
[1727785462900,1.59448367,2636.5,2636.1,4.55251]
[1727785463103,1.59448367,2636.7,2636.3,5.41341521]
[1727785463306,2.38679755,2637.0,2636.6,1.62029521]
[1727785463307,2.35568367,2636.9,2636.6,1.62029521]
[1727785463618,1.98899796,2637.0,2636.9,1.62029521]
[1727785463619,1.59448367,2637.0,2636.9,1.62029521]
[1727785463778,6.14779367,2637.1,2636.9,1.62029521]
[1727785463981,3.79262,2636.7,2635.9,4.55278]
[1727785464318,3.79262,2636.7,2636.3,1.62029521]
[1727785464476,3.79262,2636.7,2636.5,1.62029521]
[1727785464875,6.14288904,2636.9,2636.5,1.62029521]
[1727785465112,6.14288904,2636.9,2636.7,1.62029521]
[1727785465278,4.55362,2636.9,2636.7,1.62029521]
[1727785465484,3.79247,2636.8,2636.7,1.62029521]
[1727785466478,3.79247,2636.8,2636.5,1.62029521]
[1727785466680,3.79264,2636.7,2636.5,1.62029521]
[1727785468182,4.55362,2636.9,2636.5,1.62029521]
[1727785468183,6.79248,2636.8,2636.5,1.62029521]
[1727785468914,3.0,2636.8,2636.5,1.62029521]
[1727785469219,0.7612,2636.9,2636.7,1.62029521]
[1727785471212,3.0,2637.0,2636.7,1.62029521]
[1727785471918,6.79221,2637.0,2636.7,1.62029521]
[1727785472079,3.0,2637.0,2636.9,1.62029521]
[1727785472281,4.55058,2637.1,2636.9,1.62029521]
[1727785472589,4.60274,2637.3,2636.9,1.62029521]
[1727785472787,4.60274,2637.3,2637.1,1.62029521]
[1727785473026,3.79161,2637.4,2637.1,1.62029521]
[1727785473322,3.79153,2637.5,2637.4,1.62029521]
[1727785474016,3.79153,2637.5,2637.4,1.67987318]
[1727785474523,6.79153,2637.5,2637.4,1.67987318]
[1727785474882,6.79153,2637.5,2637.4,1.62029521]
[1727785477210,6.79153,2637.5,2637.4,1.67982722]
[1727785480238,6.79153,2637.5,2637.4,0.05953201]
[1727785480621,3.7917,2637.4,2637.2,1.62029521]
[1727785480915,3.7917,2637.4,2637.3,0.05963882]
[1727785481298,3.0,2637.5,2637.0,1.62029521]
[1727785481501,3.79193,2637.2,2636.8,1.62029521]
[1727785481704,3.7919,2637.2,2637.1,0.05987751]
[1727785481915,3.79214,2637.1,2636.8,1.62029521]
[1727785482710,7.58365,2637.3,2636.8,1.62029521]
[1727785482934,3.79177,2637.3,2636.8,1.62029521]
[1727785483241,3.7919,2637.2,2636.8,1.62029521]
[1727785487822,3.79183,2637.3,2636.8,1.62029521]
[1727785488150,7.54831,2637.4,2636.8,1.62029521]
[1727785488708,3.79178,2637.3,2636.8,1.62029521]
[1727785489138,3.79178,2637.3,2636.9,0.06008141]
[1727785491443,3.0,2637.3,2636.9,0.06008141]
[1727785493711,6.79179,2637.3,2636.9,0.84248141]
[1727785494219,6.79179,2637.3,2636.9,0.84134167]
[1727785494735,3.0,2637.3,2636.9,0.84134167]
[1727785494942,3.79191,2637.2,2636.9,0.84134167]
[1727785495641,3.79205,2637.1,2636.9,0.05894167]
[1727785495840,3.79191,2637.2,2636.9,0.05894167]
[1727785496140,7.5839,2637.2,2636.7,0.804]
[1727785496354,3.79191,2637.2,2637.0,0.05991292]
[1727785496647,3.79204,2637.1,2636.7,0.804]
[1727785497044,3.79201,2637.2,2636.7,0.804]
[1727785498243,3.79201,2637.2,2636.7,4.59658]
[1727785498449,6.79182,2637.3,2636.7,4.59658]
[1727785498749,3.0,2637.3,2636.8,5.41269521]
[1727785499241,6.79178,2637.3,2636.8,5.41269521]
[1727785500244,6.79178,2637.3,2636.8,1.62029521]
[1727785501151,3.7919,2637.2,2636.8,1.62029521]
[1727785501767,6.79178,2637.3,2636.9,0.06003229]
[1727785504536,3.0,2637.3,2636.9,0.06003229]
[1727785504740,3.0,2637.3,2636.9,3.85231229]
[1727785505110,3.0,2637.3,2636.9,0.06003229]
[1727785505327,4.58926904,2637.4,2637.2,1.62029521]
[1727785505645,3.56757672,2638.0,2637.7,3.7911]
[1727785505849,1.58926904,2638.0,2637.9,2.41639521]
[1727785506051,1.58926904,2638.2,2637.9,2.41639521]
[1727785506368,5.37989904,2638.1,2637.9,0.85489027]
[1727785506522,5.37989904,2638.1,2637.9,0.05879027]
[1727785506923,5.37989904,2638.1,2637.7,0.7553]
[1727785507124,5.37989904,2638.1,2638.0,0.05866821]
[1727785507433,5.37989904,2638.1,2637.7,0.7553]
[1727785507434,5.3802927,2638.1,2637.7,0.7553]
[1727785507638,1.5896627,2638.1,2638.0,0.05861672]
[1727785507835,5.76877768,2638.2,2637.7,0.7553]
[1727785508164,1.58965657,2638.0,2637.7,0.7553]
[1727785508494,1.58965657,2638.0,2637.8,0.0588692]
[1727785508818,1.58965657,2638.0,2637.7,0.7553]
[1727785509023,1.58965657,2638.0,2637.9,0.05874991]
[1727785509245,1.58965657,2638.0,2637.8,0.0588692]
[1727785509461,1.58965657,2638.0,2637.9,0.05874991]
[1727785509862,1.58965657,2638.0,2637.7,0.7553]
[1727785510163,1.58965657,2638.1,2637.8,0.0588692]
[1727785510458,1.58965657,2638.1,2637.7,0.7553]
[1727785510663,1.58965657,2638.0,2637.9,0.05874991]
[1727785510833,1.58965657,2638.0,2637.8,0.0588692]
[1727785511154,1.58965657,2638.0,2637.9,0.05874991]
[1727785511527,1.58965657,2638.0,2637.7,4.54645]
[1727785511727,1.58965657,2638.0,2637.9,0.05874991]
[1727785511927,1.58965657,2638.0,2637.7,4.54645]
[1727785512152,1.58965657,2638.0,2637.9,0.05874991]
[1727785512425,2.35065657,2638.0,2637.4,0.7832]
[1727785512771,1.58926832,2637.9,2637.4,4.5748]
[1727785512953,3.79119,2637.7,2637.5,0.05922712]
[1727785513172,1.58926832,2637.7,2637.5,0.05922712]
[1727785513448,1.58926832,2637.7,2637.1,3.7919]
[1727785513449,1.58926832,2637.6,2637.2,3.79181]
[1727785514064,1.58926832,2637.6,2637.3,0.8077]
[1727785515124,1.58926832,2637.6,2637.3,4.59945]
[1727785516143,1.58926832,2637.6,2637.3,0.8077]
[1727785516682,1.58926832,2637.5,2637.3,0.8077]
[1727785519252,1.58926832,2637.5,2637.4,0.05928101]
[1727785520542,1.58926832,2637.5,2637.1,4.62016]
[1727785520743,1.58926832,2637.5,2637.4,0.05928101]
[1727785520942,1.58926832,2637.5,2637.1,4.62016]
[1727785521176,1.58926832,2637.5,2637.4,0.05928101]
[1727785521389,5.38072832,2637.5,2637.1,0.8282]
[1727785521608,3.79148,2637.5,2637.4,0.05928101]
[1727785521898,5.77954988,2637.5,2637.1,0.8282]
[1727785522045,5.77954988,2637.5,2637.4,0.05928101]
[1727785522247,5.77954988,2637.5,2637.1,0.8282]
[1727785522463,1.59047089,2637.4,2637.1,0.8282]
[1727785522683,1.59047089,2637.4,2637.2,0.05951969]
[1727785524082,5.38209089,2637.4,2637.2,0.05951969]
[1727785524847,1.59047089,2637.4,2637.2,0.05951969]
[1727785525052,1.59047089,2637.5,2637.2,0.05951969]
[1727785526171,1.59047089,2637.4,2637.2,0.05951969]
[1727785527390,1.59047089,2637.5,2637.2,0.05951969]
[1727785527873,5.38195089,2637.5,2637.2,0.05951969]
[1727785528048,1.59047089,2637.4,2637.2,0.05951969]
[1727785529173,1.59047089,2637.5,2637.2,0.05951969]
[1727785529385,1.59047089,2637.4,2637.2,0.05951969]
[1727785530659,1.59047089,2637.5,2637.2,3.85138969]
[1727785531286,5.38194089,2637.5,2637.2,0.05951969]
[1727785531498,1.59047089,2637.4,2637.2,0.05951969]
[1727785534854,5.38209089,2637.4,2637.2,0.05951969]
[1727785535690,1.59047089,2637.4,2637.2,0.05951969]
[1727785543424,1.59047089,2637.3,2637.2,0.05951969]
[1727785544607,1.59047089,2637.4,2637.2,0.05951969]
[1727785545284,1.59047089,2637.3,2637.2,0.05951969]
[1727785549719,1.59047089,2637.3,2637.2,3.85141969]
[1727785549947,1.59047089,2637.4,2637.2,3.85141969]
[1727785550123,1.59047089,2637.5,2637.3,3.79175]
[1727785550318,1.59047089,2637.5,2637.4,3.85090215]
[1727785550551,1.98971515,2637.6,2637.5,0.8325]
[1727785550552,1.59047089,2637.6,2637.5,0.8325]
[1727785550733,1.59047089,2637.8,2637.7,4.62368]
[1727785550933,2.38765818,2638.2,2637.7,4.62368]
[1727785550934,1.59047089,2638.1,2637.8,3.79102]
[1727785551133,1.59047089,2638.2,2637.9,6.30232144]
[1727785551338,1.59047089,2638.2,2637.9,2.51152144]
[1727785551822,1.59047089,2638.1,2637.9,2.51152144]
[1727785553262,1.9887037,2638.2,2637.9,2.51152144]
[1727785553263,1.59047089,2638.2,2637.9,2.51152144]
[1727785555761,1.59047089,2638.2,2637.9,6.30240144]
[1727785556364,1.59047089,2638.3,2637.9,6.30240144]
[1727785556662,1.59047089,2638.2,2637.9,6.30240144]
[1727785557944,1.59047089,2638.3,2637.9,6.30240144]
[1727785561457,1.59047089,2638.3,2638.0,3.79073]
[1727785561897,1.59047089,2638.3,2638.1,0.05837218]
[1727785562942,5.38066089,2638.4,2638.1,0.05837218]
[1727785563143,1.59047089,2638.3,2638.1,0.05837218]
[1727785563656,4.59047089,2638.5,2638.1,0.05837218]
[1727785563859,1.59047089,2638.4,2638.1,3.79059]
[1727785564058,4.59047089,2638.5,2638.2,0.87274995]
[1727785565179,1.59047089,2638.4,2638.2,0.05814995]
[1727785565537,1.59047089,2638.4,2638.0,4.60362]
[1727785565888,1.59047089,2638.4,2638.1,0.05826921]
[1727785566174,8.38059089,2638.5,2638.1,0.05826921]
[1727785567275,3.79018,2638.4,2638.1,0.05826921]
[1727785567486,5.38065089,2638.4,2638.1,0.05826921]
[1727785568444,3.79018,2638.4,2638.1,0.05826921]
[1727785569969,3.79032,2638.3,2638.1,0.05826921]
[1727785570346,5.38065089,2638.4,2638.1,0.05826921]
[1727785570643,3.79018,2638.4,2638.1,0.05826921]
[1727785571946,7.58044,2638.4,2638.1,0.05826921]
[1727785572142,3.79046,2638.2,2638.1,0.05826921]
[1727785572374,3.79098,2637.9,2637.6,0.8249]
[1727785572689,5.37854281,2638.0,2637.6,0.8249]
[1727785572849,3.79076,2638.0,2637.6,0.8249]
[1727785573418,7.58162,2638.0,2637.6,0.8249]
[1727785573566,5.37854281,2638.0,2637.6,0.8249]
[1727785574085,3.79076,2638.0,2637.6,0.8249]
[1727785574613,3.79092,2637.9,2637.6,0.8249]
[1727785574974,5.37854281,2638.0,2637.6,0.8249]
[1727785575493,9.16936281,2638.0,2637.6,0.8249]
[1727785575696,3.79094,2637.9,2637.6,0.8249]
[1727785576213,5.37854281,2638.0,2637.6,0.8249]
[1727785576711,3.79092,2637.9,2637.6,0.8249]
[1727785578273,1.58778281,2638.0,2637.7,3.79116]
[1727785578590,5.37826281,2638.2,2637.8,4.58643]
[1727785579179,9.16882281,2638.2,2637.9,0.05848968]
[1727785579715,5.37826281,2638.2,2637.9,0.05848968]
[1727785579873,9.16883281,2638.2,2637.9,0.05848968]
[1727785580079,5.37826281,2638.2,2637.9,0.05848968]
[1727785580708,1.58778281,2638.2,2637.9,1.67878489]
[1727785580912,1.58778281,2638.2,2637.9,0.05848968]
[1727785580913,5.37826281,2638.2,2637.9,0.05848968]
[1727785581115,3.79048,2638.2,2637.9,0.05848968]
[1727785581275,5.37810281,2638.3,2637.9,3.84936968]
[1727785581481,1.58778281,2638.2,2637.9,3.84936968]
[1727785582015,1.58778281,2638.2,2637.9,4.85498517]
[1727785582784,5.37810281,2638.3,2637.9,4.85498517]
[1727785583199,1.58778281,2638.2,2637.9,4.85498517]
[1727785583915,1.58778281,2638.2,2637.9,1.06410517]
[1727785584297,1.58778281,2638.2,2637.9,0.05848968]
[1727785584497,5.37828281,2638.2,2637.9,0.05848968]
[1727785584888,3.79064,2638.1,2637.9,0.05848968]
[1727785585280,5.37842281,2638.1,2637.9,0.05848968]
[1727785585507,5.37842281,2638.1,2637.7,3.79116]
[1727785585708,9.16913281,2638.1,2638.0,0.05840238]
[1727785585922,3.79081,2638.0,2637.6,4.5964]
[1727785586096,5.38003808,2638.0,2637.6,4.5964]
[1727785586427,5.38003808,2638.0,2637.6,0.8051]
[1727785586612,5.38012808,2637.9,2637.6,0.8051]
[1727785586924,1.58922808,2637.8,2637.6,0.8051]
[1727785587534,1.58922808,2637.8,2637.6,4.59635]
[1727785587705,1.58922808,2637.9,2637.6,4.59635]
[1727785589190,1.58922808,2637.9,2637.7,3.79117]
[1727785589731,1.58922808,2637.9,2637.6,5.59717152]
[1727785590521,1.58922808,2637.8,2637.6,5.59717152]
[1727785590731,1.58922808,2637.8,2637.6,4.59635]
[1727785590930,1.58922808,2637.9,2637.6,4.59635]
[1727785591686,1.58922808,2637.9,2637.7,1.62029521]
[1727785594230,1.58922808,2637.9,2637.8,0.05867018]
[1727785594527,1.58922808,2637.9,2637.7,1.62029521]
[1727785594819,1.58922808,2637.9,2637.8,0.05867018]
[1727785595018,1.58922808,2637.9,2637.7,1.62029521]
[1727785595328,1.58922808,2637.9,2637.8,0.05867018]
[1727785595707,1.58922808,2637.9,2637.7,1.62029521]
[1727785595890,1.98917638,2638.0,2637.8,0.05867018]
[1727785596092,1.59163928,2638.0,2637.9,6.22708521]
[1727785596293,1.59163928,2638.0,2637.9,2.43619521]
[1727785596527,1.59163928,2638.0,2637.9,6.2856514]
[1727785597836,1.59163928,2638.0,2637.9,6.91421654]
[1727785598393,1.59163928,2638.1,2637.9,6.91421654]
[1727785598734,1.59163928,2638.1,2638.0,3.79075]
[1727785598933,1.59163928,2638.1,2637.9,6.91421654]
[1727785599120,1.98950105,2638.2,2638.0,0.05844691]
[1727785599349,1.59191775,2638.1,2638.0,0.05844691]
[1727785599523,1.98950105,2638.2,2638.0,0.05844691]
[1727785600298,5.78038993,2638.2,2638.0,0.05844691]
[1727785600526,1.98990993,2638.1,2638.0,0.05844691]
[1727785600800,1.98990993,2638.1,2638.0,0.05842187]
[1727785601937,1.98990993,2638.2,2638.0,0.05842187]
[1727785602332,1.98990993,2638.2,2638.0,0.83152187]
[1727785602543,1.59195417,2638.1,2638.0,5.16918558]
[1727785602832,1.59195417,2638.1,2638.0,5.16913828]
[1727785603699,1.59195417,2638.1,2638.0,1.37842828]
[1727785603909,1.59195417,2638.1,2638.0,4.62222457]
[1727785604108,1.59195417,2638.2,2638.0,0.83147457]
[1727785604313,1.59195417,2638.1,2638.0,0.83147457]
[1727785605012,1.59195417,2638.1,2638.0,4.62222457]
[1727785605639,1.59195417,2638.1,2638.0,0.83147457]
[1727785605937,1.59195417,2638.1,2638.0,4.62222457]
[1727785607624,1.59195417,2638.1,2638.0,0.83147457]
[1727785608315,1.59195417,2638.1,2638.0,0.05837457]
[1727785608915,1.59195417,2638.1,2637.8,4.56347]
[1727785609143,1.59195417,2638.1,2638.0,0.05836483]
[1727785609318,1.59195417,2638.1,2637.9,0.05848411]
[1727785609640,1.59195417,2638.1,2638.0,0.05836483]
[1727785611621,1.98989865,2638.2,2638.0,0.05836483]
[1727785611944,1.98989865,2638.1,2638.0,0.05836483]
[1727785612247,3.79051,2638.2,2637.8,0.7725]
[1727785612458,1.59211846,2638.0,2637.8,0.7725]
[1727785612622,1.59211846,2637.9,2637.8,0.7725]
[1727785613009,1.59211846,2637.9,2637.7,3.79111]
[1727785613208,1.59211846,2637.9,2637.7,3.79107]
[1727785613645,1.59211846,2637.9,2637.7,7.58217]
[1727785614115,1.59211846,2637.9,2637.8,3.79103]
[1727785615328,1.59211846,2637.9,2637.8,5.55174952]
[1727785615649,1.59211846,2638.0,2637.9,3.79089]
[1727785617654,1.59211846,2638.0,2637.9,5.41118521]
[1727785618350,1.59211846,2638.0,2637.9,3.79089]